bitfinex-derivatives/quotes_ETHF0:USTF0_20250903
["timestamp","ask_amount","ask_price","bid_price","bid_amount"]
[1756894080508,0.5405,4349.5,4349.4,0.6904]
[1756894080804,0.5405,4349.5,4349.4,0.3919]
[1756894081001,0.8541,4349.5,4349.4,0.3919]
[1756894081202,0.1234,4350.0,4349.4,0.6904]
[1756894081400,0.5217,4349.9,4349.8,1.38412285]
[1756894081606,0.5217,4349.9,4349.8,0.6904]
[1756894082302,0.3136,4349.9,4349.8,1.77602285]
[1756894082610,0.7342,4349.9,4349.8,0.3919]
[1756894082810,0.7342,4349.9,4349.8,0.1947]
[1756894086004,0.4206,4349.7,4349.6,0.4307]
[1756894086207,0.7342,4349.7,4349.6,0.6279]
[1756894086508,0.5217,4349.7,4349.6,0.9264]
[1756894087307,0.7342,4349.7,4349.6,0.6279]
[1756894088515,0.5217,4349.7,4349.6,0.9257]
[1756894090510,0.5217,4349.9,4349.8,0.6897]
[1756894090716,0.5217,4349.9,4349.8,1.77532285]
[1756894094002,0.1234,4350.0,4349.8,1.77532285]
[1756894094003,0.3071,4350.0,4349.9,0.7053]
[1756894094303,0.3071,4350.0,4349.9,0.9413]
[1756894094502,0.3071,4350.0,4349.9,41.7413]
[1756894095511,0.4269,4350.0,4349.9,41.7413]
[1756894095706,0.3071,4350.0,4349.9,41.7413]
[1756894096108,0.1153,4351.0,4349.9,41.7413]
[1756894096307,0.4991,4350.3,4350.2,1.79092285]
[1756894096509,0.4991,4350.3,4350.2,2.02692285]
[1756894097109,0.3071,4350.3,4350.2,2.02692285]
[1756894097313,0.8182,4351.0,4350.9,0.2041]
[1756894097812,0.8182,4351.0,4350.9,0.4077]
[1756894101515,0.8182,4351.0,4350.9,0.2041]
[1756894106723,0.8182,4351.0,4350.9,0.4077]
[1756894106922,0.8182,4351.0,4350.9,0.7053]
[1756894107218,0.4991,4351.0,4350.9,0.88916622]
[1756894107714,0.6189,4351.0,4350.9,0.7053]
[1756894107920,0.8227,4351.0,4350.9,0.7053]
[1756894108121,0.8227,4351.0,4350.9,0.4077]
[1756894108916,0.8227,4351.0,4350.9,0.2041]
[1756894109111,0.8227,4351.0,4350.6,0.5336]
[1756894109112,0.7029,4350.9,4350.6,0.236]
[1756894109521,0.3958,4350.9,4350.7,0.88775021]
[1756894109720,0.7029,4350.8,4350.7,0.88775021]
[1756894112515,0.1198,4351.0,4350.4,0.2041]
[1756894112516,0.1198,4350.5,4350.4,0.2041]
[1756894112829,0.7029,4349.9,4349.8,0.236]
[1756894113325,0.7029,4349.9,4349.8,41.036]
[1756894114335,0.7029,4349.9,4349.8,0.4401]
[1756894114930,0.7029,4349.9,4349.8,41.2401]
[1756894116736,0.3071,4349.4,4349.3,1.61548572]
[1756894116935,0.7029,4349.1,4349.0,0.236]
[1756894117138,0.7029,4349.1,4349.0,41.036]
[1756894117533,0.7029,4349.1,4349.0,40.8]
[1756894117838,0.7029,4349.1,4349.0,1.29545021]
[1756894118341,0.7029,4349.1,4349.0,42.09545021]
[1756894118839,0.7029,4349.1,4349.0,42.39305021]
[1756894119237,0.7029,4349.1,4349.0,42.09545021]
[1756894120041,0.7029,4349.1,4349.0,41.89185021]
[1756894120444,0.7029,4349.1,4349.0,41.68775021]
[1756894120944,0.7029,4349.1,4349.0,1.09185021]
[1756894121546,0.7029,4349.1,4349.0,1.29545021]
[1756894124142,0.7029,4349.1,4349.0,1.09185021]
[1756894125045,0.3997,4348.8,4348.7,1.09495021]
[1756894125249,0.6962,4348.8,4348.7,1.33095021]
[1756894126140,0.6962,4348.8,4348.7,0.88775021]
[1756894126546,0.6962,4348.8,4348.7,1.09495021]
[1756894126747,0.6962,4348.8,4348.7,1.29705021]
[1756894127751,0.1198,4349.5,4348.7,1.59625021]
[1756894128047,0.1198,4350.0,4349.9,0.4093]
[1756894128048,0.5195,4350.0,4349.9,0.4093]
[1756894128351,0.5195,4350.0,4349.9,0.88775021]
[1756894128538,0.816,4350.0,4349.9,0.88775021]
[1756894129045,0.6962,4349.9,4349.8,1.29705021]
[1756894129752,0.6962,4349.9,4349.8,1.09495021]
[1756894129952,0.6962,4349.9,4349.8,1.29705021]
[1756894131251,0.6962,4349.9,4349.8,1.09495021]
[1756894131553,0.6962,4349.9,4349.8,1.29705021]
[1756894138151,0.1227,4351.0,4349.8,1.29705021]
[1756894138152,0.1227,4351.0,4350.3,0.4093]
[1756894138351,0.1227,4351.0,4349.8,1.77550042]
[1756894138352,0.6229,4351.0,4350.9,1.29705021]
[1756894138655,0.6229,4351.0,4350.9,1.59625021]
[1756894138656,0.5002,4351.0,4350.9,1.59625021]
[1756894138852,0.8189,4351.0,4350.9,1.29705021]
[1756894140453,0.6962,4350.4,4350.3,41.036]
[1756894140654,0.6962,4350.4,4350.3,41.3352]
[1756894141051,0.6962,4350.4,4350.3,41.036]
[1756894141757,0.6962,4350.4,4350.3,41.3352]
[1756894142157,0.5002,4350.4,4350.3,41.3352]
[1756894142653,0.2965,4351.0,4350.9,0.7085]
[1756894142852,0.2037,4351.3,4351.2,0.2072]
[1756894143059,0.5002,4351.3,4351.2,1.59625021]
[1756894143451,0.2965,4351.9,4351.3,0.2992]
[1756894143762,0.2965,4351.9,4351.2,1.77550042]
[1756894143763,0.5002,4351.9,4351.8,1.29705021]
[1756894143946,0.6962,4351.9,4351.8,1.29705021]
[1756894144150,0.6962,4351.9,4351.8,0.4093]
[1756894149260,0.6962,4351.9,4351.8,0.2072]
[1756894150963,0.6962,4351.8,4351.7,0.88775021]
[1756894151469,0.6962,4351.8,4351.7,1.09495021]
[1756894152166,0.6962,4351.8,4351.7,1.29705021]
[1756894152464,0.6962,4351.8,4351.7,1.58635021]
[1756894152660,0.6962,4351.8,4351.7,1.29705021]
[1756894154756,0.6962,4351.8,4351.7,1.58635021]
[1756894155658,0.6962,4351.8,4351.7,1.29705021]
[1756894156958,0.6962,4351.8,4350.7,0.2893]
[1756894156959,0.3997,4351.8,4350.7,0.2893]
[1756894157262,0.88775021,4352.2,4351.3,1.08395021]
[1756894157263,0.7138,4351.4,4351.3,1.08395021]
[1756894157564,0.7138,4351.4,4351.3,1.28075021]
[1756894158365,0.7138,4351.4,4351.3,1.57005021]
[1756894159057,0.7138,4351.4,4351.3,1.28075021]
[1756894159460,0.7138,4351.4,4351.0,5.165]
[1756894159769,0.7138,4351.1,4351.0,5.3612]
[1756894160064,0.7138,4351.1,4351.0,5.165]
[1756894164265,0.7138,4350.9,4350.8,0.1962]
[1756894167764,0.7138,4350.9,4350.8,0.393]
[1756894167971,0.7138,4350.9,4350.8,1.28075021]
[1756894168158,0.7138,4350.9,4350.8,1.57005021]
[1756894169473,0.7138,4350.9,4350.8,0.6823]
[1756894170270,0.7138,4350.9,4350.8,0.393]
[1756894170772,0.1214,4350.5,4350.4,0.1962]
[1756894170979,0.8352,4350.5,4350.4,0.1962]
[1756894171264,0.8352,4350.5,4350.4,0.393]
[1756894174872,0.8352,4350.5,4350.4,0.1962]
[1756894175875,0.4069,4350.1,4350.0,0.1962]
[1756894176063,0.1214,4350.5,4349.6,0.628]
[1756894176064,0.5144,4349.7,4349.6,0.628]
[1756894176268,0.5144,4349.7,4349.6,0.9173]
[1756894176574,0.7138,4349.7,4349.6,0.393]
[1756894177272,0.1214,4350.0,4349.5,5.165]
[1756894177273,0.7138,4349.6,4349.5,5.165]
[1756894178182,0.7138,4349.2,4349.1,0.628]
[1756894179770,0.7138,4349.2,4349.1,0.9173]
[1756894180668,0.7138,4349.2,4349.1,0.393]
[1756894182578,0.5144,4349.2,4349.1,0.6916]
[1756894183176,0.3069,4349.2,4349.1,0.6916]
[1756894183372,0.4939,4349.9,4349.8,0.2017]
[1756894183571,0.524,4350.5,4350.4,0.3963]
[1756894184282,0.8127,4350.5,4350.4,0.3963]
[1756894184471,0.6913,4349.9,4349.8,0.3963]
[1756894188577,0.6913,4349.9,4349.8,0.1946]
[1756894189378,0.6913,4349.9,4349.8,0.3963]
[1756894190973,0.2887,4349.9,4349.8,0.6949]
[1756894191482,0.4939,4349.9,4349.8,0.6949]
[1756894193185,0.6913,4349.9,4349.8,0.6949]
[1756894193483,0.6913,4349.9,4349.8,0.3963]
[1756894193683,0.6913,4349.9,4349.8,0.6949]
[1756894193881,0.6913,4349.9,4349.8,0.3963]
[1756894194983,0.6913,4349.9,4349.8,0.6949]
[1756894195586,0.6913,4349.9,4349.8,0.3963]
[1756894196480,0.6913,4349.9,4349.8,0.6949]
[1756894198076,0.6913,4349.9,4349.8,0.3963]
[1756894199084,0.1214,4350.5,4350.3,0.3963]
[1756894199292,0.4939,4350.4,4350.3,1.77912694]
[1756894199686,0.6913,4350.4,4350.3,0.3963]
[1756894200886,0.1197,4351.5,4350.3,1.48052694]
[1756894200887,0.2887,4350.9,4350.3,1.48052694]
[1756894201091,0.2887,4350.9,4350.1,0.235]
[1756894201092,0.2887,4350.9,4350.8,0.6949]
[1756894201991,0.4939,4350.9,4350.8,0.6949]
[1756894202388,0.6913,4350.9,4350.8,0.6949]
[1756894202588,0.6913,4350.9,4350.8,0.3963]
[1756894206399,0.6913,4350.9,4350.8,0.6949]
[1756894206590,0.2887,4350.9,4350.8,0.6949]
[1756894206790,0.1197,4351.5,4350.9,0.2986]
[1756894206791,0.2887,4351.4,4350.9,0.2986]
[1756894206986,0.3249,4351.5,4351.4,0.6949]
[1756894207192,0.811,4351.5,4351.4,0.1946]
[1756894207798,0.6913,4350.8,4350.7,0.6949]
[1756894208007,0.4939,4350.8,4350.7,0.9299]
[1756894208200,0.4939,4350.8,4350.7,0.6949]
[1756894208406,0.4939,4350.8,4350.7,41.7299]
[1756894208901,0.1197,4351.5,4350.8,0.2979]
[1756894209201,0.6136,4351.5,4351.4,0.6942]
[1756894209410,0.4939,4351.5,4351.4,0.6942]
[1756894209907,0.811,4351.5,4351.4,0.3963]
[1756894211507,0.811,4351.5,4351.4,0.6942]
[1756894211901,0.811,4351.5,4351.4,0.3963]
[1756894212903,0.2967,4351.9,4351.5,0.3587]
[1756894213111,0.5064,4351.9,4351.8,1.78492694]
[1756894214608,0.2967,4351.9,4351.8,1.78492694]
[1756894214911,0.1197,4352.5,4351.8,1.78492694]
[1756894215108,0.2967,4352.4,4351.8,1.78492694]
[1756894215311,0.34947,4352.5,4351.8,1.48702694]
[1756894215510,0.2967,4352.4,4351.8,1.78492694]
[1756894215712,0.2967,4352.4,4351.9,0.2979]
[1756894215911,0.7125,4352.4,4352.3,0.1983]
[1756894218007,0.7125,4352.4,4352.3,0.4028]
[1756894218213,0.7125,4352.4,4352.3,0.7007]
[1756894218613,0.7125,4352.4,4352.3,0.4028]
[1756894220718,0.7125,4352.4,4352.3,0.1983]
[1756894225220,0.2097,4351.7,4351.6,0.7007]
[1756894225421,0.5064,4351.7,4351.6,0.93048]
[1756894225822,0.5064,4351.7,4351.6,0.7007]
[1756894226021,0.7125,4351.7,4351.6,0.4028]
[1756894226225,0.7125,4351.7,4351.6,0.1983]
[1756894228024,0.5436,4351.5,4351.4,0.6378]
[1756894228321,0.8403,4351.5,4351.4,0.6378]
[1756894230516,0.8403,4351.5,4351.3,6.24922694]
[1756894230517,0.2967,4351.4,4351.3,5.165]
[1756894230723,0.7125,4351.4,4351.3,5.165]
[1756894230912,0.4158,4350.8,4350.7,1.61548572]
[1756894231114,0.2967,4350.7,4350.5,0.235]
[1756894231319,0.7125,4350.7,4350.6,0.4028]
[1756894231526,0.7125,4350.7,4350.6,1.29056881]
[1756894233225,0.7125,4350.7,4350.6,0.4028]
[1756894233422,0.7125,4350.7,4350.6,0.1983]
[1756894234625,0.7125,4350.4,4350.3,0.88776881]
[1756894234826,0.7125,4350.4,4350.3,1.32106881]
[1756894235025,0.7125,4350.4,4350.3,1.52556881]
[1756894235221,0.7125,4350.4,4350.0,1.61548572]
[1756894235414,0.7125,4349.9,4349.8,0.235]
[1756894235618,0.4158,4349.6,4349.5,1.08606881]
[1756894235824,0.7125,4349.6,4349.5,42.12106881]
[1756894236021,0.7125,4349.6,4349.5,1.08606881]
[1756894236526,0.7125,4349.6,4349.5,41.88606881]
[1756894237924,0.7125,4349.6,4349.5,42.18396881]
[1756894238123,0.7125,4349.6,4349.5,41.88606881]
[1756894240024,0.7125,4349.6,4349.5,40.9983]
[1756894240229,0.7125,4349.6,4349.5,41.88606881]
[1756894240617,0.7125,4349.6,4349.5,42.18396881]
[1756894241327,0.7125,4349.6,4349.5,1.12276881]
[1756894241529,0.7125,4349.6,4349.5,1.32106881]
[1756894243132,0.7125,4349.6,4349.5,1.52746881]
[1756894243730,0.1278,4350.5,4349.6,0.2985]
[1756894243928,0.1278,4350.5,4350.3,0.6984]
[1756894243929,0.3198,4350.4,4350.3,0.6984]
[1756894244126,0.3198,4350.9,4350.8,0.3999]
[1756894244430,0.5196,4350.9,4350.8,0.6984]
[1756894244629,0.7132,4350.9,4350.5,0.235]
[1756894245035,0.7132,4350.9,4350.5,1.12276881]
[1756894245331,0.7132,4350.6,4350.5,1.31626881]
[1756894245628,0.7132,4350.6,4349.9,0.6984]
[1756894245629,0.1998,4350.0,4349.9,0.6984]
[1756894245819,0.1998,4350.0,4349.9,1.58616881]
[1756894245820,0.5196,4350.0,4349.9,1.58616881]
[1756894246020,0.5196,4350.0,4349.9,0.3999]
[1756894246021,0.8359,4350.0,4349.9,0.3999]
[1756894246334,0.8359,4350.0,4349.5,0.2985]
[1756894246335,0.3934,4349.6,4349.5,1.08126881]
[1756894246524,0.7132,4349.6,4349.5,1.08126881]
[1756894246726,0.7132,4349.6,4349.5,1.28766881]
[1756894252339,0.7132,4349.6,4349.5,0.3999]
[1756894252734,0.1998,4348.8,4348.7,2.01538572]
[1756894253036,0.5196,4348.8,4348.7,42.62116881]
[1756894253628,0.5196,4348.8,4348.7,42.32266881]
[1756894253836,0.7132,4348.8,4348.7,1.82116881]
[1756894254039,0.3198,4348.8,4348.7,1.82116881]
[1756894254236,0.3198,4349.0,4348.8,0.2985]
[1756894254431,0.3198,4349.0,4348.9,0.6984]
[1756894254632,0.8359,4349.0,4348.9,0.6984]
[1756894254834,0.8359,4349.0,4348.9,0.3999]
[1756894256341,0.8359,4349.0,4348.9,1.28766881]
[1756894256647,0.3198,4349.0,4348.9,1.58616881]
[1756894256843,0.8359,4349.0,4348.9,1.28766881]
[1756894258731,0.8359,4349.0,4348.9,1.58616881]
[1756894259445,0.3225,4349.5,4349.4,0.3999]
[1756894259743,0.5196,4349.9,4349.8,0.3999]
[1756894259942,0.5196,4349.9,4349.8,1.28766881]
[1756894260244,0.7132,4349.9,4349.8,1.28766881]
[1756894261245,0.7132,4349.9,4349.8,1.58616881]
[1756894262141,0.5196,4349.2,4349.1,5.8634]
[1756894262338,0.1227,4349.5,4349.1,6.75116881]
[1756894262545,0.3198,4349.4,4349.3,0.6984]
[1756894263542,0.3198,4349.4,4349.3,1.58616881]
[1756894263933,0.3198,4349.9,4349.3,1.28766881]
[1756894264146,0.7132,4349.9,4349.8,0.3999]
[1756894265749,0.7132,4349.9,4349.8,0.1935]
[1756894266243,0.1227,4349.5,4349.4,0.1935]
[1756894266549,0.8359,4349.5,4349.4,1.08126881]
[1756894266941,0.8359,4349.5,4349.4,1.28766881]
[1756894269149,0.8359,4349.5,4349.4,1.58666881]
[1756894269945,0.7132,4349.9,4349.8,0.3999]
[1756894270344,0.7132,4349.9,4349.8,0.6989]
[1756894271148,0.7132,4349.9,4349.8,0.3999]
[1756894272044,0.7132,4349.9,4349.8,0.1935]
[1756894272250,0.3108,4349.8,4349.7,0.88776881]
[1756894272450,0.7091,4349.8,4349.7,0.88776881]
[1756894274149,0.3983,4349.8,4349.4,1.12276881]
[1756894274359,0.3072,4349.5,4349.4,1.53336881]
[1756894274551,0.8244,4349.5,4349.4,1.53336881]
[1756894274750,0.3108,4349.5,4349.4,1.83156881]
[1756894275857,0.5027,4349.5,4349.4,1.83156881]
[1756894276851,0.618,4349.5,4349.4,1.83156881]
[1756894277151,0.8244,4349.5,4349.4,1.53336881]
[1756894277957,0.8244,4349.5,4349.4,0.6456]
[1756894279760,0.8244,4349.5,4349.4,0.9438]
[1756894279951,0.5027,4349.5,4349.4,0.9438]
[1756894280148,0.4335,4350.0,4349.5,0.359]
[1756894280354,0.5027,4350.8,4350.7,0.4106]
[1756894280553,0.5027,4350.8,4350.7,0.7088]
[1756894280753,0.7091,4350.8,4350.7,1.29836881]
[1756894282056,0.1153,4350.5,4350.2,41.034]
[1756894282260,0.7091,4350.3,4350.2,41.034]
[1756894282762,0.7091,4350.3,4350.2,41.3322]
[1756894285953,0.3108,4350.3,4350.2,41.3322]
[1756894286153,0.3108,4350.5,4350.4,0.7088]
[1756894286356,0.5027,4350.5,4350.4,1.59656881]
[1756894286558,0.8244,4350.5,4350.4,1.29836881]
[1756894286758,0.8244,4350.5,4350.4,0.83000653]
[1756894287257,0.8244,4350.5,4350.2,40.8]
[1756894287459,0.3108,4350.4,4350.2,40.8]
[1756894287659,0.7091,4350.3,4350.2,40.8]
[1756894289760,0.5027,4350.3,4350.2,40.8]
[1756894290464,0.1153,4350.5,4350.2,40.8]
[1756894290770,0.3108,4350.4,4350.3,0.234]
[1756894290964,0.3108,4350.4,4350.3,1.12176881]
[1756894291663,0.1153,4350.5,4350.3,6.28676881]
[1756894292570,0.4261,4350.5,4350.3,6.28676881]
[1756894293068,0.3108,4350.4,4350.3,6.28676881]
[1756894293570,0.5027,4350.4,4350.3,5.399]
[1756894294663,0.3108,4350.4,4350.3,5.399]
[1756894297066,0.5027,4350.4,4350.3,5.165]
[1756894297275,5.71261701,4350.4,4349.9,1.63294373]
[1756894297460,0.3983,4349.7,4349.3,1.63294373]
[1756894297662,0.8244,4349.5,4349.4,0.234]
[1756894301375,0.4261,4349.5,4349.4,0.234]
[1756894301869,0.826,4349.5,4349.4,0.234]
[1756894305776,0.4261,4349.5,4349.4,0.234]
[1756894305980,0.2935,4349.9,4349.4,6.09685373]
[1756894306181,0.2935,4349.9,4349.8,1.084447]
[1756894306378,0.2935,4349.9,4349.8,1.318447]
[1756894306681,0.2935,4349.9,4349.8,42.118447]
[1756894309576,0.2935,4349.9,4349.8,47.283447]
[1756894310576,0.2935,4350.4,4349.8,47.513337]
[1756894310776,0.2935,4350.4,4350.3,1.084447]
[1756894310977,0.2935,4350.4,4350.3,6.483447]
[1756894311176,0.2935,4350.4,4350.3,5.399]
[1756894311376,0.7009,4350.4,4350.3,5.399]
[1756894311872,0.2935,4350.4,4350.3,5.399]
[1756894312883,0.4088,4350.5,4350.3,5.399]
[1756894313081,0.4088,4350.5,4350.4,5.165]
[1756894313684,0.1167,4351.5,4350.4,5.34843688]
[1756894313878,0.2935,4350.9,4350.7,1.084447]
[1756894314180,0.4929,4350.9,4350.8,0.234]
[1756894315783,0.7009,4350.9,4350.8,0.234]
[1756894316479,0.4929,4350.9,4350.8,0.234]
[1756894317286,0.7009,4350.9,4350.8,0.234]
[1756894321190,0.2935,4350.8,4350.5,5.399]
[1756894321497,0.7009,4350.6,4350.5,5.399]
[1756894322188,0.7009,4350.6,4350.5,5.165]
[1756894322386,0.4074,4350.2,4350.1,0.234]
[1756894322587,0.7009,4350.2,4350.1,0.234]
[1756894322895,0.8176,4350.0,4349.9,0.234]
[1756894323687,0.1167,4350.5,4349.9,5.318447]
[1756894323894,0.3161,4350.5,4350.4,1.084447]
[1756894324199,0.5241,4350.5,4350.1,5.165]
[1756894324492,0.4074,4350.2,4350.1,5.399]
[1756894324696,0.7009,4350.2,4350.1,5.399]
[1756894325489,0.4929,4350.2,4350.1,5.399]
[1756894326597,0.2935,4350.2,4350.1,5.399]
[1756894327493,0.4929,4350.2,4350.1,5.399]
[1756894327695,0.7009,4350.2,4350.1,5.399]
[1756894332791,0.2935,4350.2,4350.1,6.483447]
[1756894332999,0.1167,4350.5,4350.1,6.483447]
[1756894333000,0.2908,4350.4,4350.1,6.483447]
[1756894333189,0.2908,4350.4,4350.3,1.084447]
[1756894333393,0.2908,4350.4,4350.3,1.318447]
[1756894334099,0.4075,4350.5,4350.3,1.318447]
[1756894334298,0.3164,4351.0,4350.4,5.165]
[1756894334498,0.6072,4351.0,4350.9,1.084447]
[1756894335098,0.6072,4351.0,4350.9,0.584447]
[1756894335399,0.6072,4351.0,4350.8,0.234]
[1756894335601,0.6072,4351.0,4350.9,40.8]
[1756894337599,0.6072,4351.0,4350.9,41.884447]
[1756894337800,0.4135,4351.0,4350.9,41.884447]
[1756894340001,0.4135,4351.0,4350.9,40.8]
[1756894341601,0.4135,4351.0,4350.9,41.884447]
[1756894341799,0.1167,4351.5,4350.9,41.884447]
[1756894342004,0.2908,4351.4,4351.3,1.084447]
[1756894342206,0.4845,4351.4,4351.3,1.318447]
[1756894342599,0.4845,4351.4,4351.3,0.234]
[1756894343206,0.6845,4351.4,4351.3,0.234]
[1756894344006,0.6845,4351.4,4350.9,47.049447]
[1756894344207,0.4064,4351.0,4350.9,47.049447]
[1756894344406,0.4064,4351.0,4350.9,46.199]
[1756894344704,0.4064,4351.0,4350.9,41.034]
[1756894349314,0.4064,4351.0,4350.9,40.8]
[1756894349515,0.4064,4351.0,4350.9,41.034]
[1756894351923,0.4064,4351.0,4350.9,40.8]
[1756894352115,0.4064,4351.0,4350.9,41.034]
[1756894353622,0.4064,4351.0,4350.9,41.92161928]
[1756894355627,0.2908,4351.4,4350.9,41.92161928]
[1756894355925,0.2908,4351.4,4351.3,0.88761928]
[1756894356124,0.6845,4351.4,4351.3,1.12161928]
[1756894356319,0.4845,4351.4,4351.3,1.12161928]
[1756894356818,0.2908,4351.4,4351.3,1.12161928]
[1756894357022,0.4845,4351.4,4351.3,1.12161928]
[1756894357618,0.4064,4351.0,4350.9,40.8]
[1756894357817,0.4064,4351.0,4350.9,41.034]
[1756894362328,0.4064,4351.0,4350.9,42.66694373]
[1756894365338,0.4064,4351.0,4350.9,41.034]
[1756894374247,0.4064,4351.0,4350.9,41.92161928]
[1756894381449,0.2908,4351.0,4350.9,41.92161928]
[1756894381649,0.3109,4351.9,4350.9,49.1152601]
[1756894381853,0.3109,4351.9,4351.8,0.88761928]
[1756894382147,0.3109,4351.9,4351.8,2.75137767]
[1756894383058,0.3109,4351.9,4351.8,2.93522191]
[1756894383260,0.3109,4351.9,4351.8,1.12161928]
[1756894383457,0.1167,4352.0,4351.8,1.12161928]
[1756894383659,0.3232,4352.5,4351.8,1.12161928]
[1756894383860,0.3109,4352.4,4352.3,0.88761928]
[1756894384058,0.3109,4352.4,4352.3,1.12161928]
[1756894384256,0.5185,4352.4,4352.3,1.12161928]
[1756894384957,0.7269,4352.4,4352.3,1.12161928]
[1756894385352,0.5185,4352.4,4352.3,1.12161928]
[1756894390965,0.5185,4352.4,4352.3,0.88761928]
[1756894391264,0.5185,4352.4,4352.3,1.12161928]
[1756894392363,0.4164,4353.5,4352.3,6.02161928]
[1756894392565,0.2898,4354.1,4353.4,1.77523856]
[1756894392760,0.1181,4354.5,4354.0,0.88761928]
[1756894393061,0.1181,4354.5,4354.1,41.034]
[1756894393262,0.5108,4354.5,4354.2,0.234]
[1756894393469,0.5108,4354.5,4354.2,1.12161928]
[1756894393669,0.1964,4354.4,4354.2,1.12161928]
[1756894393966,0.2898,4354.3,4354.2,1.12161928]
[1756894394366,0.2898,4354.3,4354.2,1.40771019]
[1756894395270,0.2898,4354.3,4354.2,0.51909091]
[1756894397277,0.2898,4354.3,4354.2,0.233]
[1756894399276,0.4862,4354.3,4354.2,0.233]
[1756894399468,0.2898,4354.3,4354.2,0.233]
[1756894402077,0.4862,4354.3,4354.2,0.233]
[1756894403273,0.1964,4354.3,4354.1,40.8]
[1756894403472,0.4861,4354.2,4354.1,40.8]
[1756894403680,0.4861,4354.2,4354.1,41.033]
[1756894406680,0.4861,4354.2,4354.1,41.92061928]
[1756894407481,0.4861,4354.2,4354.1,42.22559513]
[1756894407872,0.2898,4354.2,4354.1,42.22559513]
[1756894408477,0.2898,4354.2,4354.1,41.33797585]
[1756894411785,0.2898,4354.4,4354.1,41.33797585]
[1756894411984,0.1181,4354.5,4354.4,0.88761928]
[1756894412287,0.1181,4354.5,4354.4,1.42559513]
[1756894412490,0.8006,4354.5,4354.4,1.42559513]
[1756894412883,0.6043,4354.5,4354.4,1.42559513]
[1756894413786,0.4079,4354.5,4354.4,1.42559513]
[1756894415192,0.2898,4354.9,4354.4,1.42559513]
[1756894415495,0.1181,4355.0,4354.8,1.08168226]
[1756894415694,0.4079,4355.0,4354.9,0.53873705]
[1756894415894,0.4079,4355.0,4354.9,41.33873705]
[1756894417992,0.1181,4356.5,4354.9,45.56835705]
[1756894417993,0.2898,4356.4,4354.9,45.56835705]
[1756894418295,0.6825,4356.4,4356.3,1.08168226]
[1756894418594,0.6825,4356.4,4356.3,1.62041931]
[1756894418996,0.6825,4356.4,4356.3,42.42041931]
[1756894419191,0.2898,4356.4,4356.3,42.60231703]
[1756894419393,0.2898,4356.4,4356.3,42.42041931]
[1756894423295,0.2898,4356.4,4356.3,41.33873705]
[1756894423495,0.2898,4356.4,4356.3,42.42041931]
[1756894427499,0.2898,4356.4,4356.3,42.18741931]
[1756894427700,0.2898,4356.4,4356.3,42.42041931]
[1756894427902,0.2898,4356.4,4356.3,42.18741931]
[1756894428105,0.2898,4356.4,4356.3,42.42041931]
[1756894429298,0.1181,4357.0,4356.3,42.42041931]
[1756894429299,0.3136,4356.7,4356.3,42.42041931]
[1756894429606,0.3136,4356.7,4356.6,1.08168226]
[1756894429803,0.5238,4356.7,4356.6,1.62041931]
[1756894433108,0.7294,4356.7,4356.6,1.62041931]
[1756894434711,0.5238,4356.7,4356.6,1.62041931]
[1756894435907,0.3136,4356.7,4356.6,1.62041931]
[1756894436214,0.3136,4356.7,4356.6,1.60512442]
[1756894436511,0.5238,4356.7,4356.6,1.60512442]
[1756894438911,0.7294,4356.7,4356.6,1.60512442]
[1756894445414,0.7294,4356.7,4356.6,1.60623912]
[1756894446420,0.3136,4356.7,4356.6,1.60623912]
[1756894447121,0.4317,4357.0,4356.6,2.91745138]
[1756894447320,0.4317,4357.0,4356.9,1.08168226]
[1756894447518,0.4317,4357.0,4356.9,1.60623912]
[1756894450213,0.6419,4357.0,4356.9,1.60623912]
[1756894451525,0.4317,4357.0,4356.9,1.60623912]
[1756894452016,0.8428,4357.0,4356.9,0.29155686]
[1756894453615,0.5108,4356.5,4356.4,0.1478]
[1756894453816,0.8274,4356.5,4356.4,0.29178318]
[1756894454014,0.8274,4356.5,4356.4,0.68738318]
[1756894454522,0.8274,4356.5,4356.4,0.1992]
[1756894455023,0.8274,4356.5,4356.4,0.3956]
[1756894455522,0.8274,4356.5,4356.4,0.1992]
[1756894456415,0.4326,4356.5,4356.4,0.3956]
[1756894456617,0.4326,4356.5,4356.4,0.5748]
[1756894457118,0.4326,4356.5,4356.4,0.8078]
[1756894457423,0.6265,4356.5,4356.4,0.8078]
[1756894457725,0.6265,4356.5,4356.4,0.6286]
[1756894457918,0.6265,4356.5,4356.4,0.8078]
[1756894458823,0.6265,4356.5,4356.4,41.4286]
[1756894459429,0.6265,4356.5,4356.4,41.6078]
[1756894460021,0.6265,4356.5,4356.4,41.4286]
[1756894460422,0.6265,4356.5,4356.4,41.6078]
[1756894462231,0.3166,4356.5,4356.4,41.6078]
[1756894463833,0.4326,4356.5,4356.4,41.6078]
[1756894464326,0.3166,4356.5,4356.4,41.6078]
[1756894465034,0.4326,4356.5,4356.4,41.6078]
[1756894466433,0.4326,4356.5,4356.4,41.1956]
[1756894466632,0.4326,4356.5,4356.4,41.4286]
[1756894467148,0.4326,4356.5,4356.4,41.6078]
[1756894469251,0.3166,4356.5,4356.4,41.6078]
[1756894469652,0.3166,4356.5,4356.4,0.8078]
[1756894470747,0.6286,4357.0,4356.9,0.3956]
[1756894471247,0.8295,4357.0,4356.9,0.3956]
[1756894472351,0.1181,4357.5,4356.9,0.5748]
[1756894472553,0.1181,4357.5,4357.4,1.65648226]
[1756894472554,0.6286,4357.5,4357.4,1.65648226]
[1756894472754,0.4347,4357.5,4357.4,1.88948226]
[1756894473351,0.3166,4357.5,4357.4,1.88948226]